Cogmind - Beta 15 @@@ ROGUE MODE // 2025.06.10 @ 06:31:06 Player: Mas5akr Result: Destroyed by B-74 Champion with Powered Hammer Performance ------------- Evolutions (7) 3500 Regions Visited (29) 5800 Robots Destroyed (219) 1095 Value Destroyed (7434) 7434 Prototype IDs (57) 1140 Alien Tech Used (3) 600 Bonus (3515) 3515 TOTAL SCORE: 23084 Bonus ------- High Alert Combat Kills 249 Follower Combat Kills 242 Entered Garrisons 200 Met Data Miner 300 Met Imprinter 300 Met Zhirov 300 Met Warlord at Base 500 MAIN.C Attacked Warlord 500 Warlord Defense Kills 1434 Friendly Fire -510 Cogmind --------- Core Integrity 0/1300 Matter 33/300 Energy 99/100 System Corruption 14% Temperature Cool (0) Movement Core (50) Location -3/Garrison Parts ------- > --- POWER (1) -------- (None) > --- PROPULSION (6) --- (None) > --- UTILITY (12) ----- Improved Signal Interpreter Advanced Launcher Guidance Computer > --- WEAPON (2) ------- (None) > --- INVENTORY (5) ---- Light Particle Reactor Makeshift Cloaking Device Vortex Shotgun (34) Advanced Micro-nuke Launcher Advanced Datajack Peak State ------------ > --- POWER ------------ Micro Fission Core > --- PROPULSION ------- Biomechanical Wings Field Propulsion Drive Nuclear Pulse Array Impulse Thruster Array > --- UTILITY ---------- Medium Storage Unit Enhanced Optical Array Advanced Sensor Array Improved Signal Interpreter Makeshift Cloaking Device Improved Propulsion Shielding Hacking Suite Hacking Suite Hacking Suite Advanced Hacking Suite Makeshift System Shield Improved System Shield > --- WEAPON ----------- Mini Smartbomb Launcher Force Lance > --- INVENTORY -------- Light Angular Momentum Engine Micro Antimatter Reactor Impulse Thruster Makeshift Light Armor Plating Dimensional Node Initializer Transdimensional Reconstructor Vortex Shotgun Vortex Shotgun Advanced Datajack Phasing Sabre [Rating: 114] Favorites ----------- Power Light Nuclear Core Engine Ion Engine Power Core Light Nuclear Core Reactor Micro Antimatter Reactor Propulsion Biomechanical Wings Treads Improved Treads Leg Shield Leg Hover Unit Aerolev Unit Flight Unit Biomechanical Wings Utility Hacking Suite Device Advanced Sensor Array Storage Medium Storage Unit Processor Improved Signal Interpreter Hackware Hacking Suite Protection Improved Medium Armor Plating Weapon Assault Cannon Energy Gun Field Laser Energy Cannon Beam Cannon Ballistic Gun Assault Rifle Ballistic Cannon Assault Cannon Launcher Mini Smartbomb Launcher Special Weapon Remote Datajack Impact Weapon Power Maul Slashing Weapon Power Sword Piercing Weapon Spear Special Melee Weapon Improved Datajack Build | -11 -10 -10 -10 -9 -8 -7 -7 -7 -7 -7 -7 -6 -6 -6 -6 -6 -5 -5 -5 -5 -5 -4 -4 -4 -4 -4 -3 -3 -3 ------- Run | Yrd Mat Min Exi Min Mat Fac Was Fac Low Low Zio Pro Fac Low Low Dat Pro Fac Upp Upp Zhi Pro Fac Upp Upp War Pro Res Gar Slots Evolved 14 | . . . . . 4 2 . . . . . . 2 . . . . 2 . . . . 2 . . . . 2 . Power . | . . . . . . . . . . . . . . . . . . . . . . . . . . . . . . Propulsion 4 | . . . . . 2 . . . . . . . . . . . . . . . . . 1 . . . . 1 . Utility 10 | . . . . . 2 2 . . . . . . 2 . . . . 2 . . . . 1 . . . . 1 . Weapon . | . . . . . . . . . . . . . . . . . . . . . . . . . . . . . . Parts Attached 175 | 7 4 . . 3 36 16 3 18 2 1 3 2 5 3 . 1 . 28 . 2 5 2 9 1 . 7 1 13 3 Power 29 | 1 . . . 2 3 5 . 4 1 . 1 1 . 1 . . . 4 . . 2 . . . . 1 . 3 . Engine 11 | 1 . . . 2 . 4 . . 1 . 1 . . . . . . 1 . . . . . . . . . 1 . Core 14 | . . . . . 3 1 . 4 . . . 1 . 1 . . . 3 . . 1 . . . . . . . . Reactor 4 | . . . . . . . . . . . . . . . . . . . . . 1 . . . . 1 . 2 . Propulsion 47 | 2 . . . . 15 2 . 8 . . . 1 1 . . . . 9 . 1 . . 2 . . 1 . 5 . Treads 8 | 2 . . . . 6 . . . . . . . . . . . . . . . . . . . . . . . . Leg 1 | . . . . . . . . . . . . . . . . . . . . . . . 1 . . . . . . Wheel . | . . . . . . . . . . . . . . . . . . . . . . . . . . . . . . Hover 4 | . . . . . 4 . . . . . . . . . . . . . . . . . . . . . . . . Flight 34 | . . . . . 5 2 . 8 . . . 1 1 . . . . 9 . 1 . . 1 . . 1 . 5 . Utility 62 | 1 2 . . . 12 6 1 3 1 1 . . 4 . . . . 9 . 1 3 2 6 1 . 2 1 4 2 Device 17 | . . . . . 1 1 1 2 . . . . . . . . . 3 . 1 . 1 2 . . 2 . 2 1 Storage 4 | 1 1 . . . . 1 . . . . . . . . . . . . . . 1 . . . . . . . . Processor 9 | . 1 . . . 1 1 . . . . . . . . . . . 3 . . . . 2 . . . . . 1 Hackware 15 | . . . . . . 2 . 1 . 1 . . 3 . . . . 3 . . 1 . 2 . . . 1 1 . Protection 17 | . . . . . 10 1 . . 1 . . . 1 . . . . . . . 1 1 . 1 . . . 1 . Artifact . | . . . . . . . . . . . . . . . . . . . . . . . . . . . . . . Weapon 37 | 3 2 . . 1 6 3 2 3 . . 2 . . 2 . 1 . 6 . . . . 1 . . 3 . 1 1 Energy Gun 8 | 2 . . . 1 3 . . . . . . . . . . . . . . . . . . . . 2 . . . Energy Cannon 2 | . 2 . . . . . . . . . . . . . . . . . . . . . . . . . . . . Ballistic Gun 1 | 1 . . . . . . . . . . . . . . . . . . . . . . . . . . . . . Ballistic Cannon 3 | . . . . . 3 . . . . . . . . . . . . . . . . . . . . . . . . Launcher 10 | . . . . . . 2 . 1 . . . . . 1 . . . 5 . . . . . . . . . 1 . Special Weapon 1 | . . . . . . . 1 . . . . . . . . . . . . . . . . . . . . . . Impact Weapon 2 | . . . . . . . 1 . . . . . . . . . . 1 . . . . . . . . . . . Slashing Weapon 6 | . . . . . . 1 . 1 . . 1 . . 1 . . . . . . . . . . . 1 . . 1 Piercing Weapon 3 | . . . . . . . . 1 . . 1 . . . . . . . . . . . 1 . . . . . . Special Melee Weapon 1 | . . . . . . . . . . . . . . . . 1 . . . . . . . . . . . . . Unidentified Prototypes 20 | . . . . . 4 1 . 2 . . . . . . . . . 4 . . 3 . . . . 3 . 1 2 Parts Lost 60 | . . 1 . 3 9 . . 3 1 . . 4 2 . . . . 10 . 1 . 1 4 . . . 1 13 7 Power 8 | . . . . 1 3 . . 1 . . . 1 . . . . . . . . . . . . . . . 2 . Propulsion 17 | . . . . 1 1 . . 2 . . . 2 . . . . . 3 . 1 . . 2 . . . . 3 2 Utility 25 | . . . . . 3 . . . 1 . . . 2 . . . . 5 . . . 1 2 . . . 1 6 4 Weapon 10 | . . 1 . 1 2 . . . . . . 1 . . . . . 2 . . . . . . . . . 2 1 Highest Loss Streak 7 | . . 1 . 2 3 . . 2 1 . . 4 1 . . . . 4 . 1 . 1 4 . . . 1 7 7 To Critical Strikes . | . . . . . . . . . . . . . . . . . . . . . . . . . . . . . . Average Backups 9 | 2 4 9 11 9 13 9 9 8 8 8 8 8 7 10 10 10 10 8 8 9 9 9 9 7 9 10 9 8 5 Power . | . 1 1 2 1 . . . . 2 2 2 1 1 1 1 1 1 1 2 2 2 1 . . . . . . 1 Propulsion 1 | . . . . . 3 3 3 2 2 2 2 1 1 2 2 2 2 1 1 . . . . 1 2 2 2 1 . Utility 3 | . 1 4 5 5 5 2 3 2 2 3 3 3 2 4 4 4 4 1 2 3 3 2 3 2 2 2 1 1 1 Weapon 3 | . 2 3 4 3 4 3 2 3 2 1 1 1 1 1 2 2 2 2 2 3 3 2 2 2 2 3 3 2 1 Tool/Special . | . . . . . . . . . . . . . . . . . . . . . . . . . . . . . . Unused Backups 25 | . . . . . 13 1 1 2 . . . . . . . . . 2 . . . . 2 . . . . 2 2 Power 2 | . . . . . . . . . . . . . . . . . . . . . . . 1 . . . . . 1 Propulsion 4 | . . . . . 1 . 1 . . . . . . . . . . 2 . . . . . . . . . . . Utility 8 | . . . . . 4 . . 2 . . . . . . . . . . . . . . 1 . . . . 1 . Weapon 10 | . . . . . 8 1 . . . . . . . . . . . . . . . . . . . . . 1 . Tool/Special 1 | . . . . . . . . . . . . . . . . . . . . . . . . . . . . . 1 Average Slot Usage (%) 90 | . 93 99 100 85 88 84 99 94 96 96 99 96 86 86 86 86 86 88 88 89 96 95 89 93 94 93 88 85 46 Engine 3 | . 14 14 14 13 1 4 7 3 2 7 7 5 . . . . . . . . . . . . . . . 1 . Core 3 | . . . . . 5 . . 3 4 . . . 5 6 6 6 6 4 5 5 4 5 5 5 5 5 5 2 . Treads 8 | . 28 28 28 14 20 . . . . . . . . . . . . . . . . . . . . . . . . Hover 1 | . . . . . 7 . . . . . . . . . . . . . . . . . . . . . . . . Flight 13 | . . . . . 1 29 30 27 30 30 30 28 16 13 13 13 13 16 23 23 23 23 19 21 21 20 15 18 7 Device 4 | . . . . . . 5 7 7 7 7 7 7 5 6 6 6 6 6 5 6 7 5 8 10 10 10 10 8 4 Storage 7 | . 14 14 14 14 9 7 7 7 7 7 7 7 6 6 6 6 6 5 5 5 5 5 4 5 5 5 5 4 3 Processor 9 | . 8 14 14 14 9 10 7 7 7 7 7 7 6 6 6 6 6 8 11 11 11 11 11 14 10 10 10 9 13 Hackware 14 | . . . . . . 13 15 15 15 20 23 23 25 26 26 26 26 29 29 29 29 29 29 26 26 26 25 24 8 Protection 5 | . . . . . 15 3 7 6 3 . . . 5 6 6 6 6 2 . . . 5 . . 5 5 5 4 . Energy Gun 2 | . 10 6 . 4 6 . . . . . . . . . . . . . . . . . . . . . . . . Energy Cannon 2 | . 6 7 14 14 . . . . . . . . . . . . . . . . . . . . . . . . . Ballistic Gun 2 | . 11 14 14 9 . . . . . . . . . . . . . . . . . . . . . . . . . Ballistic Cannon 1 | . . . . . 10 . . . . . . . . . . . . . . . . . . . . . . . . Slashing Weapon 2 | . . . . . . 5 7 5 6 6 8 13 3 5 6 6 6 4 . 3 5 5 1 . . 1 . . 3 Piercing Weapon 1 | . . . . . . . . 1 6 7 5 . 6 6 6 3 6 1 . . . . 1 5 5 5 5 3 . Peak Build Rating 114 | 6 7 9 9 9 34 41 42 52 54 57 57 57 67 68 68 68 68 77 72 71 78 81 96 94 95 102 102 114 90 Average Rating 49 | 3 6 8 9 8 27 36 41 45 52 54 56 55 61 67 68 67 68 70 66 67 72 75 82 93 94 97 100 106 71 On Entrance 55 | . 6 7 9 9 8 31 37 42 49 53 56 57 56 67 68 68 67 68 65 68 71 76 76 93 94 95 102 101 61 Naked Turns . | . . . . . . . . . . . . . . . . . . . . . . . . . . . . . . Heaviest Build 49 | 14 31 30 30 30 49 24 20 23 32 21 22 22 29 29 25 25 25 30 23 21 24 27 26 28 28 29 29 38 28 Greatest Support 92 | 40 40 40 40 40 92 20 20 24 24 24 24 25 28 28 28 28 28 28 22 25 25 25 31 31 31 35 35 48 32 Greatest Overweight (x) 14 | 1 . . . 1 14 1 . 1 1 . . 5 1 1 . . . 1 1 . . 1 . . . . . . 1 Average Overweight (x) . | . . . . . . . . . . . . . . . . . . . . . . . . . . . . . . Largest Inventory Capacity 15 | 8 15 15 15 15 15 15 10 10 10 10 10 10 10 10 10 10 10 10 10 10 10 10 10 10 10 10 10 10 10 Average Capacity 11 | 6 14 15 15 15 15 10 10 10 10 10 10 10 10 10 10 10 10 10 10 10 10 10 9 10 10 10 10 10 9 Most Carried 15 | 5 6 11 11 11 15 15 10 10 10 10 10 10 10 10 10 10 10 10 10 10 10 10 10 9 10 10 10 10 8 Average Carried 10 | 2 4 10 11 9 13 9 9 9 9 9 9 9 7 10 10 10 10 9 9 9 9 9 9 7 9 9 9 9 5 Final Capacity 15 | 8 15 15 15 15 15 10 10 10 10 10 10 10 10 10 10 10 10 10 10 10 10 10 10 10 10 10 10 10 5 Final Carried 15 | 2 6 11 11 9 15 10 10 10 10 9 10 6 10 10 10 10 10 9 10 9 9 10 7 9 10 10 10 8 5 Class Distribution -------------------- 39% | Mutant 18% | Hacker-Sprinter 13% | Hacker-Scout 8% | Hacker-Ninja 7% | Hacker-Mutant 6% | Wizard-Scout Dominant Class ---------------- Mutant | -10/Materials Mutant | -10/Mines Mutant | -10/Exiles Mutant | -9/Mines Mutant | -8/Materials Hacker-Sprinter | -7/Factory Hacker-Sprinter | -7/Waste Hacker-Sprinter | -7/Factory Hacker-Sprinter | -7/Lower Caves Hacker-Sprinter | -7/Lower Caves Hacker-Sprinter | -7/Zion Hacker-Sprinter | -6/Proximity Caves Hacker-Sprinter | -6/Factory Hacker-Mutant | -6/Lower Caves Hacker-Mutant | -6/Lower Caves Hacker-Mutant | -6/Data Miner Hacker-Mutant | -5/Proximity Caves Hacker-Scout | -5/Factory Hacker-Scout | -5/Upper Caves Hacker-Scout | -5/Upper Caves Hacker-Scout | -5/Zhirov Hacker-Scout | -4/Proximity Caves Wizard-Scout | -4/Factory Hacker-Ninja | -4/Upper Caves Hacker-Ninja | -4/Upper Caves Hacker-Ninja | -4/Warlord Hacker-Ninja | -3/Proximity Caves Wizard-Ninja | -3/Research Hacker-Scout | -3/Garrison Resources | -11 -10 -10 -10 -9 -8 -7 -7 -7 -7 -7 -7 -6 -6 -6 -6 -6 -5 -5 -5 -5 -5 -4 -4 -4 -4 -4 -3 -3 -3 ----------- Run | Yrd Mat Min Exi Min Mat Fac Was Fac Low Low Zio Pro Fac Low Low Dat Pro Fac Upp Upp Zhi Pro Fac Upp Upp War Pro Res Gar Matter Collected 5598 | 213 71 156 . 63 1270 112 . 362 187 77 10 30 265 67 48 . 25 629 312 262 106 144 319 219 . 325 49 274 3 Remotely . | . . . . . . . . . . . . . . . . . . . . . . . . . . . . . . Salvage Created 7167 | . 71 261 . 227 1893 119 . 443 133 105 . 58 457 6 . . . 850 206 225 480 56 508 . 77 496 49 444 3 Parts 375 | . 6 13 . 21 94 9 . 26 3 4 . 4 44 . . . . 57 1 4 2 2 19 . . 13 6 46 1 Haulers Intercepted 14 | . . . . . 5 1 . 3 . . . . . . . . . 3 . . . . 2 . . . . . . Recyclers Shooed 1 | . . . . . 1 . . . . . . . . . . . . . . . . . . . . . . . . Parts Field Recycled . | . . . . . . . . . . . . . . . . . . . . . . . . . . . . . . Retrieved Matter . | . . . . . . . . . . . . . . . . . . . . . . . . . . . . . . Parts Self-Destructed 16 | . . . . . . . . . . 3 . 4 . . . . . . . 2 2 . . . . . 5 . . Prevented 1 | . . . . . . . . . . . . . . . . . . . . . . . . . . . 1 . . Kills | -11 -10 -10 -10 -9 -8 -7 -7 -7 -7 -7 -7 -6 -6 -6 -6 -6 -5 -5 -5 -5 -5 -4 -4 -4 -4 -4 -3 -3 -3 ------- Run | Yrd Mat Min Exi Min Mat Fac Was Fac Low Low Zio Pro Fac Low Low Dat Pro Fac Upp Upp Zhi Pro Fac Upp Upp War Pro Res Gar Combat Hostiles Destroyed 137 | . . 6 . 14 38 4 . 9 5 4 . 1 10 1 . . . 17 . 1 . 1 8 . . 8 3 6 1 Melee 16 | . . . . . . 1 . 5 1 . . 1 3 . . . . 2 . . . . 2 . . . 1 . . Guns 24 | . . 5 . 3 15 . . . . . . . . . . . . . . . . . . . . . . . 1 Cannons 31 | . . . . 10 21 . . . . . . . . . . . . . . . . . . . . . . . . AOE 64 | . . 1 . . 1 3 . 4 4 4 . . 7 1 . . . 15 . 1 . 1 6 . . 8 2 6 . Classes Destroyed 22 | . 1 1 . 3 9 2 . . 1 . . . . . . . . 2 . . . 1 . . . 2 . . . Worker 19 | . . . . 1 2 . . . . . . . 7 . . . . 7 . . . . 1 . . . . 1 . Builder 16 | . . . . . 1 . . . . . . . 1 . . . . 6 . . . . 1 . . . . 7 . Tunneler 2 | . . . . . . 1 . . . . . . . . . . . 1 . . . . . . . . . . . Hauler 14 | . . . . . 5 1 . 3 . . . . . . . . . 3 . . . . 2 . . . . . . Recycler 3 | . . . . . 2 . . . . . . . 1 . . . . . . . . . . . . . . . . Mechanic 3 | . . . . . . . . . . . . . . . . . . 1 . . . . . . . . . 2 . Operator 9 | . . . . . 3 . . 1 . . . . 2 . . . . 2 . . . . . . . . . 1 . Watcher 14 | . 3 . . . 4 . . . . . . . 1 . . . . 3 . . . . 3 . . . . . . Swarmer 53 | . . . . 13 5 3 . 6 . 4 . . 6 . . . . 4 . . . 1 4 . . . 3 3 1 Cutter 9 | . . . . . . . . . . . . . . . . . . 4 . . . . 2 . . . . 3 . Grunt 31 | . . 6 . . 16 . . 2 . . . . . . . . . 4 . . . . . . . 3 . . . Brawler 2 | . . . . . 2 . . . . . . . . . . . . . . . . . . . . . . . . Duelist 2 | . . . . . 2 . . . . . . . . . . . . . . . . . . . . . . . . Protector 1 | . . . . . 1 . . . . . . . . . . . . . . . . . . . . . . . . Sentry 11 | . . . . . 9 . . 1 . . . . 1 . . . . . . . . . . . . . . . . Hunter 7 | . . . . . 3 . . . . . . 1 . . . . . . . 1 . . . . . 2 . . . Programmer 12 | . . . . . . 1 . . . . . . 3 1 . . . 5 . . . . 2 . . . . . . Striker 2 | . . . . . . . . . . . . . . . . . . . . . . . . . . 2 . . . Executioner 1 | . . . . . . . . . . . . . . . . . . . . . . . . . . 1 . . . Samaritan 1 | . . . . . . . . . . . . . . . . . . . . . . 1 . . . . . . . Assembled 1 | . . . . 1 . . . . . . . . . . . . . . . . . . . . . . . . . Thug 3 | . . . . . . . . . . . . . . . . . . . . . . . . . . 3 . . . Savage 4 | . . . . . . . . . 4 . . . . . . . . . . . . . . . . . . . . Mutant 1 | . . . . . . . . . 1 . . . . . . . . . . . . . . . . . . . . Best Kill Streak 10 | . 2 2 . 8 6 3 . 4 4 4 . 1 6 1 . . . 10 . 1 . 1 4 . . 6 3 4 1 Combat Bots Only 7 | . . 2 . 7 5 3 . 4 4 4 . 1 3 1 . . . 4 . 1 . 1 4 . . 6 3 4 1 Max Kills in Single Turn 6 | . 1 1 . 2 2 2 . 2 2 2 . 1 6 1 . . . 5 . 1 . 1 2 . . 3 1 3 1 Gunslinging 1 | . . . . . 1 . . . . . . . . . . . . . . . . . . . . . . . . Exploded 4 | . . 1 . . 1 2 . 2 2 2 . . 3 1 . . . 4 . 1 . 1 2 . . 2 1 2 . Melee 1 | . . . . . . 1 . 1 1 . . 1 1 . . . . 1 . . . . 1 . . . 1 . . Uniques/NPCs Destroyed . | . . . . . . . . . . . . . . . . . . . . . . . . . . . . . . Combat | -11 -10 -10 -10 -9 -8 -7 -7 -7 -7 -7 -7 -6 -6 -6 -6 -6 -5 -5 -5 -5 -5 -4 -4 -4 -4 -4 -3 -3 -3 -------- Run | Yrd Mat Min Exi Min Mat Fac Was Fac Low Low Zio Pro Fac Low Low Dat Pro Fac Upp Upp Zhi Pro Fac Upp Upp War Pro Res Gar Hostile Shots Fired 1095 | . . 41 . 57 263 19 . 113 5 9 . 45 75 6 . . . 117 2 3 . 14 20 8 2 . 8 179 109 Missed 413 | . . 11 . 16 72 10 . 51 1 4 . 8 28 3 . . . 36 1 . . 7 6 8 1 . 5 94 51 Hits 682 | . . 30 . 41 191 9 . 62 4 5 . 37 47 3 . . . 81 1 3 . 7 14 . 1 . 3 85 58 Melee 20 | . . . . . 6 . . . 2 . . . . . . . . 3 . . . . 2 . . . . 5 2 Projectile 662 | . . 30 . 41 185 9 . 62 2 5 . 37 47 3 . . . 78 1 3 . 7 12 . 1 . 3 80 56 AOE 7 | . . . . . . . . . . . . . . . . . . 1 . . . . 1 . . . . 5 . Critical Strikes 31 | . . 1 . . 14 . . 1 2 . . 1 1 . . . . 6 . . . . . . . . . 4 1 Actively Blocked 1 | . . . . . 1 . . . . . . . . . . . . . . . . . . . . . . . . Part Disruptions 1 | . . . . . . . . . . . . . 1 . . . . . . . . . . . . . . . . Damage Taken 11979 | . . 474 . 331 3159 136 . 699 153 77 . 666 539 47 . . . 1854 25 21 . 154 460 . 21 . 65 1672 1426 Core 3299 | . . 126 . 52 431 63 . 161 20 49 . 266 69 . . . . 618 . . . 40 91 . 21 . 25 393 874 Absorbed by Shields . | . . . . . . . . . . . . . . . . . . . . . . . . . . . . . . Redirected to Shielding 215 | . . . . . 86 5 . 21 . . . . . . . . . . . . . . . . . . 13 90 . Regen/Repaired (Parts) 890 | . . . . . . 19 . 119 . . . . 278 . . . . 116 . . . . 276 . . 13 . 69 . Core Remaining (%) 54 | 100 . . . 28 21 . . . . . . 20 . . . . 91 . . . . 34 . . . . 88 . . Volleys Fired 322 | . 21 18 . 24 150 2 . 2 4 3 . . 7 4 . . . 27 11 4 . 7 7 . . 7 4 14 6 Largest 2 | . 2 2 . 2 2 1 . 1 2 1 . . 1 1 . . . 2 1 1 . 1 1 . . 1 1 1 1 Hottest 128 | . 120 80 . 125 128 33 . 39 78 39 . . 39 39 . . . 80 80 80 . 80 80 . . 80 80 80 60 Shots Fired 541 | . 42 36 . 48 300 2 . 2 8 3 . . 7 4 . . . 29 11 4 . 7 7 . . 7 4 14 6 Gun 190 | . 28 30 . 24 102 . . . . . . . . . . . . . . . . . . . . . . . 6 Cannon 242 | . 14 6 . 24 198 . . . . . . . . . . . . . . . . . . . . . . . . Launcher 109 | . . . . . . 2 . 2 8 3 . . 7 4 . . . 29 11 4 . 7 7 . . 7 4 14 . Special . | . . . . . . . . . . . . . . . . . . . . . . . . . . . . . . Kinetic 239 | . 17 18 . 16 188 . . . . . . . . . . . . . . . . . . . . . . . . Thermal 127 | . 14 6 . 32 75 . . . . . . . . . . . . . . . . . . . . . . . . Explosive 108 | . . . . . . 2 . 2 8 3 . . 7 4 . . . 28 11 4 . 7 7 . . 7 4 14 . Electromagnetic 61 | . 11 12 . . 37 . . . . . . . . . . . . 1 . . . . . . . . . . . Entropic 6 | . . . . . . . . . . . . . . . . . . . . . . . . . . . . . 6 Robot Hit Streak 21 | . 4 15 . 6 21 . . . 2 . . . 2 4 . . . 7 . . . . 9 . . . . 12 4 Robot Miss Streak 8 | . 1 1 . 2 5 . . 1 2 1 . . . . . . . 3 . . . . . . . . . . 8 Penetration Max . | . . . . . . . . . . . . . . . . . . . . . . . . . . . . . . Secondary Targets 5 | . . 1 . . 4 . . . . . . . . . . . . . . . . . . . . . . . . Max Gunslinging Chain 1 | . . 1 . . 1 . . . . . . . . . . . . . . . . . . . . . . . . Shots Hit Robots 473 | . 9 29 . 26 221 6 . 32 8 1 . 9 23 2 . 1 . 35 5 6 15 1 13 . 1 9 4 11 6 Core Hits 358 | . 3 13 . 14 83 7 . 16 14 6 . 2 25 3 . . . 63 7 3 6 5 14 . . 32 6 33 3 Critical Kills 1 | . . . . 1 . . . . . . . . . . . . . . . . . . . . . . . . . Critical Parts Destroyed 3 | . . . . . . . . . . . . . . . . . . . 1 . . . 2 . . . . . . Critical Strikes 24 | . . . . 1 8 . . 2 . . . 2 2 . . . . . 1 . . . 4 . . . 1 2 1 Burn 1 | . . . . . 1 . . . . . . . . . . . . . . . . . . . . . . . . Meltdown 1 | . . . . 1 . . . . . . . . . . . . . . . . . . . . . . . . . Blast 7 | . . . . . 7 . . . . . . . . . . . . . . . . . . . . . . . . Smash 3 | . . . . . . . . . . . . . . . . . . . 1 . . . 2 . . . . . . Sever 7 | . . . . . . . . 2 . . . 2 2 . . . . . . . . . . . . . . . 1 Impale 5 | . . . . . . . . . . . . . . . . . . . . . . . 2 . . . 1 2 . Melee Attacks 342 | . . . . . . 8 . 60 5 1 . 19 52 1 . 1 . 74 5 6 15 2 44 1 2 9 5 27 5 Impact 57 | . . . . . . . . . . . . . . . . . . 24 5 . . . 25 1 2 . . . . Slashing 176 | . . . . . . 8 . 49 1 1 . 19 24 1 . . . 41 . 6 10 2 9 . . . . . 5 Piercing 94 | . . . . . . . . 11 4 . . . 28 . . . . 9 . . . . 10 . . . 5 27 . Sneak Attacks 41 | . . . . . . 2 . 3 . . . . 2 . . 1 . 8 . . 3 1 4 . . 9 . 7 1 Combat Hostiles 1 | . . . . . . . . . . . . . . . . . . . . . . . . . . . . . 1 Follow-up Attacks 7 | . . . . . . . . . 1 . . 1 2 . . . . 2 . . . . 1 . . . . . . Damage Inflicted 25442 | . 161 434 . 456 5056 674 . 1490 974 385 . 308 2347 156 . . . 4320 1215 583 810 398 1547 . 113 1166 385 2164 300 Guns 2175 | . 161 334 . 155 1362 . . . . . . . . . . . . . . . . . . . . . . . 163 Cannons 3617 | . . 35 . 298 3284 . . . . . . . . . . . . . . . . . . . . . . . . Explosions 11406 | . . 49 . . 410 406 . 272 868 318 . . 1465 156 . . . 2646 675 152 . 299 819 . . 1166 253 1452 . Melee 8207 | . . . . . . 268 . 1218 106 67 . 308 882 . . . . 1674 540 431 810 99 728 . 113 . 132 712 119 Ramming 37 | . . 16 . 3 . . . . . . . . . . . . . . . . . . . . . . . . 18 Kinetic 3474 | . 49 191 . 126 3108 . . . . . . . . . . . . . . . . . . . . . . . . Thermal 2416 | . . 84 . 327 1380 . . . . . . . 625 . . . . . . . . . . . . . . . . Explosive 10181 | . . . . . . 406 . 272 868 318 . . 840 156 . . . 2505 675 152 . 299 819 . . 1166 253 1452 . Electromagnetic 964 | . 112 143 . . 568 . . . . . . . . . . . . 141 . . . . . . . . . . . Impact 1776 | . . . . . . . . . . . . . . . . . . 820 540 . . . 303 . 113 . . . . Slashing 4894 | . . . . . . 268 . 1083 22 67 . 308 570 . . . . 854 . 431 810 99 263 . . . . . 119 Piercing 1537 | . . . . . . . . 135 84 . . . 312 . . . . . . . . . 162 . . . 132 712 . Entropic 163 | . . . . . . . . . . . . . . . . . . . . . . . . . . . . . 163 Highest Corruption 11 | . . . . . 1 3 3 3 4 4 4 . . 1 1 1 1 6 6 6 6 6 2 2 2 2 . 9 11 Average Corruption 2 | . . . . . 1 3 3 2 4 4 4 . . 1 1 1 1 2 6 6 6 6 1 2 2 2 . 4 9 Corruption Purged 3 | . . . . . . . . 3 . . . . . . . . . . . . . . . . . . . . . Corruption Blocked . | . . . . . . . . . . . . . . . . . . . . . . . . . . . . . . Effects 91 | . . . . . 19 2 3 6 2 3 1 . . . 2 . 1 11 4 4 1 12 12 1 1 . . . 6 Message Errors 29 | . . . . . 9 . 2 1 1 1 . . . . . . . 1 3 . 1 5 1 1 1 . . . 2 Matter Fused 22 | . . . . . 1 2 1 2 . 1 . . . . 1 . 1 3 . 1 . 3 4 . . . . . 2 Heat Flow Errors 10 | . . . . . 2 . . 1 . . . . . . 1 . . 1 . . . 2 2 . . . . . 1 Energy Discharges 9 | . . . . . . . . 1 1 . . . . . . . . 2 1 2 . . 2 . . . . . . Parts Rejected 1 | . . . . . 1 . . . . . . . . . . . . . . . . . . . . . . . . Parts Fused 1 | . . . . . 1 . . . . . . . . . . . . . . . . . . . . . . . . Data Loss (minor) 9 | . . . . . . . . 1 . . . . . . . . . 4 . 1 . 2 1 . . . . . . Data Loss (major) 4 | . . . . . 2 . . . . . 1 . . . . . . . . . . . 1 . . . . . . Misfires 1 | . . . . . 1 . . . . . . . . . . . . . . . . . . . . . . . . Alerts 3 | . . . . . 1 . . . . 1 . . . . . . . . . . . . 1 . . . . . . Misdirections 1 | . . . . . . . . . . . . . . . . . . . . . . . . . . . . . 1 Weapon Failures 1 | . . . . . 1 . . . . . . . . . . . . . . . . . . . . . . . . Overload Shots . | . . . . . . . . . . . . . . . . . . . . . . . . . . . . . . Overflow Damage 3051 | . . 44 . 4 151 48 . 72 55 14 . 11 342 . . . . 713 469 115 177 84 435 . 99 . 23 173 22 Projectiles 94 | . . . . 4 90 . . . . . . . . . . . . . . . . . . . . . . . . Explosions 633 | . . 44 . . 61 18 . 9 38 . . . 177 . . . . 54 41 20 . 12 112 . . . 12 35 . Melee 2324 | . . . . . . 30 . 63 17 14 . 11 165 . . . . 659 428 95 177 72 323 . 99 . 11 138 22 Knockbacks 42 | . . . . . 40 . . . . . . . . . . . . 1 1 . . . . . . . . . . Impact 2 | . . . . . . . . . . . . . . . . . . 1 1 . . . . . . . . . . Kinetic 39 | . . . . . 39 . . . . . . . . . . . . . . . . . . . . . . . . Secondary 1 | . . . . . 1 . . . . . . . . . . . . . . . . . . . . . . . . Self-Inflicted Damage 759 | . . 45 . . 222 . . . 40 . . . 9 . . . . 98 . . . . 94 . . . . 88 163 Shots 17 | . . 1 . . 5 . . . 1 . . . 1 . . . . 4 . . . . 2 . . . . 2 1 Rammed 8 | . . 3 . 1 . . . . . . . . . . . . . . . . . . . . . . . . 4 Targets Rammed 8 | . . 3 . 1 . . . . . . . . . . . . . . . . . . . . . . . . 4 Kicked . | . . . . . . . . . . . . . . . . . . . . . . . . . . . . . . Crushed . | . . . . . . . . . . . . . . . . . . . . . . . . . . . . . . Highest Temperature 378 | . 328 201 . 378 345 . . 99 65 23 . . 8 . 140 . . 144 54 36 . 235 205 . . 29 40 78 99 Average Temperature 78 | . 134 60 . 99 87 . . 32 31 13 . . 4 . 77 . . 47 30 20 . 71 49 . . 15 20 32 54 Received Heat Transfer 2134 | . . 234 . 40 1251 . . 216 9 27 . . 87 . . . . 45 9 . . 27 . . . . . 108 81 Effects 6 | . . . . . 6 . . . . . . . . . . . . . . . . . . . . . . . . Shutdowns 1 | . . . . . 1 . . . . . . . . . . . . . . . . . . . . . . . . Energy Bleed 2 | . . . . . 2 . . . . . . . . . . . . . . . . . . . . . . . . Interference 3 | . . . . . 3 . . . . . . . . . . . . . . . . . . . . . . . . Siege Activations . | . . . . . . . . . . . . . . . . . . . . . . . . . . . . . . Martial Activations . | . . . . . . . . . . . . . . . . . . . . . . . . . . . . . . Shielding Activations . | . . . . . . . . . . . . . . . . . . . . . . . . . . . . . . Robots Disrupted . | . . . . . . . . . . . . . . . . . . . . . . . . . . . . . . Combat Hostiles . | . . . . . . . . . . . . . . . . . . . . . . . . . . . . . . Robots Corrupted 4 | . . . . . 1 . . . . . . . . . . . . 1 1 . . . 1 . . . . . . Combat Hostiles 2 | . . . . . 1 . . . . . . . . . . . . . 1 . . . . . . . . . . Parts Fried 13 | . . . . . 3 . . . . . . . . . . . . 5 . . . . 4 . 1 . . . . Impact Corruptions 31 | . . . . . 1 . . . . . . . . . . . . 10 13 . . . 6 . 1 . . . . Robots Melted 1 | . . . . 1 . . . . . . . . . . . . . . . . . . . . . . . . . Combat Hostiles 1 | . . . . 1 . . . . . . . . . . . . . . . . . . . . . . . . . Parts Melted 6 | . . . . 3 3 . . . . . . . . . . . . . . . . . . . . . . . . Heat Transferred 3810 | . . 74 . 703 2633 . . . . . . . 400 . . . . . . . . . . . . . . . . Parts Sabotaged . | . . . . . . . . . . . . . . . . . . . . . . . . . . . . . . Parts Stolen . | . . . . . . . . . . . . . . . . . . . . . . . . . . . . . . Parts Stripped . | . . . . . . . . . . . . . . . . . . . . . . . . . . . . . . Power Chain Reactions 6 | . . 1 . . 5 . . . . . . . . . . . . . . . . . . . . . . . . Alert | -11 -10 -10 -10 -9 -8 -7 -7 -7 -7 -7 -7 -6 -6 -6 -6 -6 -5 -5 -5 -5 -5 -4 -4 -4 -4 -4 -3 -3 -3 ------- Run | Yrd Mat Min Exi Min Mat Fac Was Fac Low Low Zio Pro Fac Low Low Dat Pro Fac Upp Upp Zhi Pro Fac Upp Upp War Pro Res Gar Maximum Alert Level 3 | . . . . . 3 1 . . . . . . 2 . . . . 2 . . . . 1 . . . . 2 3 Low Security (%) 66 | 100 100 100 . 100 36 7 100 100 . . . . 66 . . . . 43 . . . . 93 . . . . 88 . Level 1 17 | . . . . . 26 92 . . . . . . 13 . . . . 33 . . . . 6 . . . . 7 4 Level 2 14 | . . . . . 34 . . . . . . . 19 . . . . 22 . . . . . . . . . 4 78 Level 3 . | . . . . . 2 . . . . . . . . . . . . . . . . . . . . . . . 17 Level 4 . | . . . . . . . . . . . . . . . . . . . . . . . . . . . . . . Level 5 . | . . . . . . . . . . . . . . . . . . . . . . . . . . . . . . High Security . | . . . . . . . . . . . . . . . . . . . . . . . . . . . . . . Max Security . | . . . . . . . . . . . . . . . . . . . . . . . . . . . . . . Peak Influence 769 | . 8 102 . 135 769 312 79 194 . . . . 451 . . . . 562 . . . . 221 . . . . 456 727 Initial 450 | . . . . . . 285 79 . . . . . 450 . . . . . . . . . 37 . . . . . 321 Average 157 | . . 14 . 33 299 247 33 50 . . . . 197 . . . . 220 . . . . 43 . . . . 67 621 Influence Increases 7966 | . 37 168 . 305 1375 213 17 533 . 170 . 30 1264 30 45 . . 1333 55 35 15 125 592 60 5 320 70 753 416 Destroy 0b10 Robot/C 2660 | . . 120 . 260 740 80 . 180 . 80 . 20 200 20 . . . 340 . 20 . 20 160 . . 220 60 120 20 Destroy 0b10 Robot/NC 450 | . 15 . . 5 90 10 . 20 . 5 . . 60 . . . . 115 10 5 15 . 35 . 5 5 . 55 . Destroy Leader 606 | . 6 30 . 40 218 22 . 26 . 10 . 10 62 10 . . . 82 . 10 . . 40 . . . 10 30 . Allied During Kill 50 | . . . . . . . . . . . . . . . . . . . . . . . . . . 50 . . . Successful Hack 240 | . 16 . . . 7 18 . 60 . . . . 30 . . . . 31 . . . . . . . . . 78 . Select Force Hacks 60 | . . . . . 60 . . . . . . . . . . . . . . . . . . . . . . . . Disable Machine 825 | . . 15 . . 120 75 . 30 . . . . 270 . . . . 255 . . . . 45 . . . . 15 . Anti-Garrison Action 100 | . . . . . . . . . . . . . . . . . . . . . . . . . . . . . 100 Destroy Structure 920 | . . 3 . . 50 8 17 22 . . . . 102 . . . . 270 . . . . 132 . . . . 230 86 Advance Influence 450 | . . . . . . . . . . . . . 450 . . . . . . . . . . . . . . . . Partial Spotted 180 | . . . . . . . . . . . . . . . . . . 60 . . . . 45 . . . . 30 45 Lose Combat Pursuer 1425 | . . . . . 90 . . 195 . 75 . . 90 . 45 . . 180 45 . . 105 135 60 . 45 . 195 165 Influence Decreases 7299 | . 37 168 . 305 746 614 245 347 186 90 80 30 1054 148 119 18 . 777 306 159 196 66 651 50 15 151 239 324 178 Entered New Map 1504 | . . . . . . 344 149 . 69 . 80 . . 78 19 18 . . 206 59 181 . 22 . 2 . 169 . 108 Time Decay 3883 | . 37 158 . 275 512 270 50 312 107 90 . 30 434 70 100 . . 377 100 90 15 56 381 50 13 102 60 194 . Lost Part 554 | . . 10 . 30 84 . . 30 10 . . . 20 . . . . 100 . 10 . 10 40 . . . 10 130 70 Lost Ally 100 | . . . . . . . 46 5 . . . . . . . . . . . . . . . . . 49 . . . Purge Threat 1258 | . . . . . 150 . . . . . . . 600 . . . . 300 . . . . 208 . . . . . . Squads Dispatched 50 | . . . . . 9 4 . 8 . . . . 6 . . . . 8 . . . . 5 . . . . 10 . Investigation 14 | . . . . . 3 2 . 5 . . . . . . . . . 2 . . . . 1 . . . . 1 . Extermination 15 | . . . . . . 2 . 2 . . . . 3 . . . . 3 . . . . 3 . . . . 2 . Reinforcement 19 | . . . . . 5 . . 1 . . . . 2 . . . . 3 . . . . 1 . . . . 7 . Assault 1 | . . . . . 1 . . . . . . . . . . . . . . . . . . . . . . . . Garrison 1 | . . . . . . . . . . . . . 1 . . . . . . . . . . . . . . . . Intercept . | . . . . . . . . . . . . . . . . . . . . . . . . . . . . . . Searches Triggered . | . . . . . . . . . . . . . . . . . . . . . . . . . . . . . . Data Miner Redirects 1 | . . . . . . . . . . . . . . . . . . . . . . . 1 . . . . . . Construction Impeded 3 | . . . . . 1 . . . . . . . . . . . . 1 . . . . . . . . . 1 . Haulers Reinforced 1 | . . . . . . . . 1 . . . . . . . . . . . . . . . . . . . . . Active Scanning Responses . | . . . . . . . . . . . . . . . . . . . . . . . . . . . . . . Cargo Convoy Interrupts . | . . . . . . . . . . . . . . . . . . . . . . . . . . . . . . Stealth | -11 -10 -10 -10 -9 -8 -7 -7 -7 -7 -7 -7 -6 -6 -6 -6 -6 -5 -5 -5 -5 -5 -4 -4 -4 -4 -4 -3 -3 -3 --------- Run | Yrd Mat Min Exi Min Mat Fac Was Fac Low Low Zio Pro Fac Low Low Dat Pro Fac Upp Upp Zhi Pro Fac Upp Upp War Pro Res Gar Distress Signals 10 | . . . . . 2 . . 1 . . . . 1 . . . . 2 . . . . 2 . . . . 2 . Communications Jammed . | . . . . . . . . . . . . . . . . . . . . . . . . . . . . . . Distress Signals . | . . . . . . . . . . . . . . . . . . . . . . . . . . . . . . Times Spotted 370 | . 3 8 . 15 59 4 7 31 6 8 . 6 31 1 5 . . 48 1 . . 8 27 4 7 13 1 38 39 Peak Tracking Total 16 | . 3 2 . 7 7 3 6 6 6 4 . 6 7 1 3 . . 10 3 1 . 5 7 3 6 7 2 15 16 Tactical Retreats 54 | . . . . . 5 . 2 7 . 2 . . 5 . 1 . . 6 1 . . 4 5 3 1 2 . 5 5 Traps | -11 -10 -10 -10 -9 -8 -7 -7 -7 -7 -7 -7 -6 -6 -6 -6 -6 -5 -5 -5 -5 -5 -4 -4 -4 -4 -4 -3 -3 -3 ------- Run | Yrd Mat Min Exi Min Mat Fac Was Fac Low Low Zio Pro Fac Low Low Dat Pro Fac Upp Upp Zhi Pro Fac Upp Upp War Pro Res Gar Traps Triggered 11 | . . . . . 4 1 . 3 . . . . 2 . . . . . . . . . 1 . . . . . . Indirectly . | . . . . . . . . . . . . . . . . . . . . . . . . . . . . . . Trap Hack Attempts . | . . . . . . . . . . . . . . . . . . . . . . . . . . . . . . Triggered . | . . . . . . . . . . . . . . . . . . . . . . . . . . . . . . Disarmed . | . . . . . . . . . . . . . . . . . . . . . . . . . . . . . . Reprogrammed . | . . . . . . . . . . . . . . . . . . . . . . . . . . . . . . Reused . | . . . . . . . . . . . . . . . . . . . . . . . . . . . . . . Traps Extracted . | . . . . . . . . . . . . . . . . . . . . . . . . . . . . . . Installed . | . . . . . . . . . . . . . . . . . . . . . . . . . . . . . . Triggered . | . . . . . . . . . . . . . . . . . . . . . . . . . . . . . . Machines | -11 -10 -10 -10 -9 -8 -7 -7 -7 -7 -7 -7 -6 -6 -6 -6 -6 -5 -5 -5 -5 -5 -4 -4 -4 -4 -4 -3 -3 -3 ---------- Run | Yrd Mat Min Exi Min Mat Fac Was Fac Low Low Zio Pro Fac Low Low Dat Pro Fac Upp Upp Zhi Pro Fac Upp Upp War Pro Res Gar Machines Disabled 61 | . . 1 . . 8 5 . 2 . . . . 18 1 . . . 17 . . . . 3 1 1 . . 1 3 Max in Single Turn 14 | . . 1 . . 1 3 . 1 . . . . 14 1 . . . 2 . . . . 1 1 1 . . 1 2 Garrison Access 8 | . . . . . 1 . . . . . . . 1 . . . . 2 . . . . 2 . . . . 2 . Garrison Relay 1 | . . . . . . . . . . . . . . . . . . . . . . . . . . . . . 1 Phase Generator 1 | . . . . . . . . . . . . . . . . . . . . . . . . . . . . . 1 Machines Repaired . | . . . . . . . . . . . . . . . . . . . . . . . . . . . . . . Machines Dismantled . | . . . . . . . . . . . . . . . . . . . . . . . . . . . . . . Machines Sabotaged . | . . . . . . . . . . . . . . . . . . . . . . . . . . . . . . Overloaded Fab Kills . | . . . . . . . . . . . . . . . . . . . . . . . . . . . . . . Hacking | -11 -10 -10 -10 -9 -8 -7 -7 -7 -7 -7 -7 -6 -6 -6 -6 -6 -5 -5 -5 -5 -5 -4 -4 -4 -4 -4 -3 -3 -3 --------- Run | Yrd Mat Min Exi Min Mat Fac Was Fac Low Low Zio Pro Fac Low Low Dat Pro Fac Upp Upp Zhi Pro Fac Upp Upp War Pro Res Gar Machines Accessed 118 | . 4 1 1 . 7 11 . 15 1 1 . . 15 . . 4 . 14 . . 5 . 19 1 1 8 . 10 . Terminals 47 | . 4 . . . 3 7 . 6 . . . . 6 . . . . 8 . . . . 10 . 1 . . 2 . Fabricators 9 | . . . . . . 1 . 3 . . . . 1 . . . . 1 . . . . 2 . . . . 1 . Repair Stations 11 | . . . . . . 1 . 1 . . . . 3 . . . . 1 . . . . 1 . . . . 4 . Recycling Units 10 | . . . . . 2 1 . 2 . . . . 2 . . . . . . . . . 3 . . . . . . Scanalyzers 9 | . . . . . 1 1 . 3 . . . . 2 . . . . 1 . . . . 1 . . . . . . Garrison Access 10 | . . . . . 1 . . . . . . . 1 . . . . 3 . . . . 2 . . . . 3 . Total Hacks 388 | . 12 1 7 . 14 40 . 40 1 1 . . 50 . . 30 . 44 . . 18 . 79 1 1 16 . 33 . Successful 279 | . 3 1 7 . 9 24 . 30 1 1 . . 35 . . 30 . 24 . . 18 . 61 1 1 16 . 17 . Failed 109 | . 9 . . . 5 16 . 10 . . . . 15 . . . . 20 . . . . 18 . . . . 16 . Catastrophic 13 | . 2 . . . 4 1 . . . . . . 2 . . . . 3 . . . . 1 . . . . . . Database Lockouts . | . . . . . . . . . . . . . . . . . . . . . . . . . . . . . . Manual 166 | . 11 . . . 9 18 . 15 . . 1 . 23 1 . . . 32 . . . . 42 . . 1 . 13 . Terminals 173 | . 12 . . . 7 22 . 13 . . . . 25 . . . . 33 . . . . 49 . 1 . . 11 . Fabricators 18 | . . . . . . 3 . 6 . . . . 1 . . . . 3 . . . . 4 . . . . 1 . Repair Stations 47 | . . . . . . 2 . 5 . . . . 16 . . . . 3 . . . . 6 . . . . 15 . Recycling Units 18 | . . . . . 2 2 . 7 . . . . 2 . . . . . . . . . 5 . . . . . . Scanalyzers 43 | . . . . . 4 11 . 9 . . . . 5 . . . . 2 . . . . 12 . . . . . . Garrison Access 14 | . . . . . 1 . . . . . . . 1 . . . . 3 . . . . 3 . . . . 6 . Terminal Hacks 140 | . 3 1 7 . 2 4 . 5 1 1 . . 9 . . 30 . 15 . . 18 . 22 1 1 16 . 4 . Record 40 | . . . 7 . . . . . . . . . . . . 11 . . . . 6 . . 1 1 14 . . . Part Schematic 17 | . . . . . . . . . . . . . . . . 11 . . . . 4 . 2 . . . . . . Robot Schematic 5 | . . . . . . . . . . . . . . . . 5 . . . . . . . . . . . . . Robot Analysis 4 | . . . . . . . . . . . . . . . . . . . . . 4 . . . . . . . . Prototype ID Bank 7 | . . . . . . . . . . . . . . . . 3 . . . . 4 . . . . . . . . Open Door 5 | . . 1 . . . . . . 1 1 . . . . . . . . . . . . . . . 2 . . . Level Access Points 2 | . 1 . . . . . . . . . . . . . . . . . . . . . 1 . . . . . . Branch Access Points 4 | . 1 . . . 1 . . . . . . . . . . . . 1 . . . . 1 . . . . . . Emergency Access Points 1 | . . . . . . . . . . . . . . . . . . . . . . . 1 . . . . . . Machine Index 1 | . . . . . . . . . . . . . . . . . . . . . . . 1 . . . . . . Terminal Index 6 | . . . . . . 1 . 1 . . . . 1 . . . . 1 . . . . 1 . . . . 1 . Fabricator Index 1 | . . . . . . . . . . . . . . . . . . 1 . . . . . . . . . . . Repair Station Index 2 | . . . . . . . . . . . . . . . . . . 1 . . . . 1 . . . . . . Garrison Index 1 | . . . . . . . . . . . . . . . . . . . . . . . 1 . . . . . . Alert Level 1 | . . . . . . . . . . . . . . . . . . 1 . . . . . . . . . . . Unreport Threat 9 | . . . . . 1 . . . . . . . 4 . . . . 2 . . . . 2 . . . . . . Locate Traps 1 | . . . . . . . . . . . . . . . . . . 1 . . . . . . . . . . . Dispatch Records 1 | . . . . . . . . . . . . . . . . . . . . . . . 1 . . . . . . Patrol Status 1 | . . . . . . . . . . . . . . . . . . . . . . . 1 . . . . . . Investigation Status 1 | . . . . . . . . . . . . . . . . . . . . . . . 1 . . . . . . Recall Investigation 4 | . . . . . . 1 . 1 . . . . . . . . . 1 . . . . 1 . . . . . . Recall Extermination 12 | . . . . . . 1 . 2 . . . . 1 . . . . 3 . . . . 4 . . . . 1 . Recall Reinforcements 6 | . . . . . . . . 1 . . . . 1 . . . . 2 . . . . 1 . . . . 1 . Hauler Manifests 2 | . 1 . . . . . . . . . . . 1 . . . . . . . . . . . . . . . . Registered Prototypes 2 | . . . . . . 1 . . . . . . . . . . . . . . . . 1 . . . . . . Zone Layout 4 | . . . . . . . . . . . . . 1 . . . . 1 . . . . 1 . . . . 1 . Fabricator Hacks 16 | . . . . . . 3 . 6 . . . . 1 . . . . 2 . . . . 3 . . . . 1 . Network Status 3 | . . . . . . 1 . . . . . . . . . . . . . . . . 1 . . . . 1 . Load Schematic 6 | . . . . . . 1 . 3 . . . . . . . . . 1 . . . . 1 . . . . . . Build 7 | . . . . . . 1 . 3 . . . . 1 . . . . 1 . . . . 1 . . . . . . Repair Station Hacks 35 | . . . . . . 2 . 4 . . . . 14 . . . . 2 . . . . 6 . . . . 7 . Scan Component 19 | . . . . . . 1 . 2 . . . . 7 . . . . 1 . . . . 3 . . . . 5 . Repair 16 | . . . . . . 1 . 2 . . . . 7 . . . . 1 . . . . 3 . . . . 2 . Recycling Unit Hacks 13 | . . . . . . 2 . 5 . . . . 2 . . . . . . . . . 4 . . . . . . Recycle Component 2 | . . . . . . . . 2 . . . . . . . . . . . . . . . . . . . . . Process 1 | . . . . . . . . 1 . . . . . . . . . . . . . . . . . . . . . Report Inventory 7 | . . . . . . 1 . 1 . . . . 2 . . . . . . . . . 3 . . . . . . Retrieve Matter 1 | . . . . . . . . 1 . . . . . . . . . . . . . . . . . . . . . Retrieve Components 2 | . . . . . . 1 . . . . . . . . . . . . . . . . 1 . . . . . . Scanalyzer 40 | . . . . . 4 11 . 8 . . . . 4 . . . . 1 . . . . 12 . . . . . . Insert Component 19 | . . . . . 2 4 . 4 . . . . 2 . . . . 1 . . . . 6 . . . . . . Analyze 21 | . . . . . 2 7 . 4 . . . . 2 . . . . . . . . . 6 . . . . . . Garrison Access Hacks 9 | . . . . . 1 . . . . . . . 1 . . . . 2 . . . . 2 . . . . 3 . Unlock Access 1 | . . . . . . . . . . . . . . . . . . . . . . . . . . . . 1 . Seal Access 8 | . . . . . 1 . . . . . . . 1 . . . . 2 . . . . 2 . . . . 2 . Unauthorized Hacks 26 | . . . . . 2 2 . 2 . . . . 4 . . . . 2 . . . . 12 . . . . 2 . Terminals 17 | . . . . . . 2 . 1 . . . . 4 . . . . 1 . . . . 9 . . . . . . Assimilate 2 | . . . . . . . . . . . . . 1 . . . . . . . . . 1 . . . . . . Botnet 13 | . . . . . . 1 . 1 . . . . 2 . . . . 1 . . . . 8 . . . . . . Operators 2 | . . . . . . 1 . . . . . . 1 . . . . . . . . . . . . . . . . Fabricators 1 | . . . . . . . . . . . . . . . . . . . . . . . 1 . . . . . . Prioritize 1 | . . . . . . . . . . . . . . . . . . . . . . . 1 . . . . . . Repair Stations . | . . . . . . . . . . . . . . . . . . . . . . . . . . . . . . Recycling Units 4 | . . . . . 2 . . 1 . . . . . . . . . . . . . . 1 . . . . . . Monitor 2 | . . . . . . . . 1 . . . . . . . . . . . . . . 1 . . . . . . Tunnel 2 | . . . . . 2 . . . . . . . . . . . . . . . . . . . . . . . . Scanalyzers . | . . . . . . . . . . . . . . . . . . . . . . . . . . . . . . Garrison Access 4 | . . . . . . . . . . . . . . . . . . 1 . . . . 1 . . . . 2 . Decoy 3 | . . . . . . . . . . . . . . . . . . 1 . . . . 1 . . . . 1 . Watchers 1 | . . . . . . . . . . . . . . . . . . . . . . . . . . . . 1 . Data Cores Recovered 1 | . . . . . 1 . . . . . . . . . . . . . . . . . . . . . . . . Used . | . . . . . . . . . . . . . . . . . . . . . . . . . . . . . . Hacking Detections 73 | . 4 . . . 3 11 . 13 . . . . 12 . . . . 11 . . . . 13 . . . . 6 . Full Trace Events 11 | . . . . . . 2 . 5 . . . . . . . . . 2 . . . . 1 . . . . 1 . Feedback Events . | . . . . . . . . . . . . . . . . . . . . . . . . . . . . . . Feedback Blocked 1 | . . . . . . . . . . . . . . . . . . 1 . . . . . . . . . . . Robot Schematics Acquired 8 | . . . . . . . . . . . 3 . . . . 5 . . . . . . . . . . . . . Robots Built . | . . . . . . . . . . . . . . . . . . . . . . . . . . . . . . Authchips . | . . . . . . . . . . . . . . . . . . . . . . . . . . . . . . Time . | . . . . . . . . . . . . . . . . . . . . . . . . . . . . . . Total Robot Build Rating . | . . . . . . . . . . . . . . . . . . . . . . . . . . . . . . Part Schematics Acquired 47 | . . . . . 2 3 . 4 . . 14 . 2 . . 11 . . . . 4 . 7 . . . . . . Parts Built 6 | . . . . . . . . 3 . . . . 1 . . . . 1 . . . . 1 . . . . . . Authchips . | . . . . . . . . . . . . . . . . . . . . . . . . . . . . . . Time 495 | . . . . . . 36 . 179 . . . . 58 . . . . 169 . . . . 53 . . . . . . Total Part Build Rating 34 | . . . . . . . . 15 . . . . 7 . . . . 6 . . . . 6 . . . . . . Parts Repaired 16 | . . . . . . 1 . 2 . . . . 7 . . . . 1 . . . . 3 . . . . 2 . Time 401 | . . . . . . 13 . 59 . . . . 188 . . . . 12 . . . . 69 . . . . 60 . Parts Recycled 2 | . . . . . . . . 2 . . . . . . . . . . . . . . . . . . . . . Recycled Matter 105 | . . . . . . . . 105 . . . . . . . . . . . . . . . . . . . . . Retrieved Matter 105 | . . . . . . . . 105 . . . . . . . . . . . . . . . . . . . . . Retrieved Components 11 | . . . . . . 8 . . . . . . . . . . . . . . . . 3 . . . . . . Parts Scanalyzed 17 | . . . . . 2 4 . 4 . . . . 2 . . . . . . . . . 5 . . . . . . Part Schematics Acquired 16 | . . . . . 2 3 . 4 . . . . 2 . . . . . . . . . 5 . . . . . . Parts Damaged 1 | . . . . . . . . . . . . . . . . . . . . . . . 1 . . . . . . Bothacking | -11 -10 -10 -10 -9 -8 -7 -7 -7 -7 -7 -7 -6 -6 -6 -6 -6 -5 -5 -5 -5 -5 -4 -4 -4 -4 -4 -3 -3 -3 ------------ Run | Yrd Mat Min Exi Min Mat Fac Was Fac Low Low Zio Pro Fac Low Low Dat Pro Fac Upp Upp Zhi Pro Fac Upp Upp War Pro Res Gar Used RIF Installer . | . . . . . . . . . . . . . . . . . . . . . . . . . . . . . . Robots Hacked 7 | . . . . . . . . . . . . . . . . 1 . . . . 3 . . . . 3 . . . Non-combat 1 | . . . . . . . . . . . . . . . . . . . . . . . . . . 1 . . . Combat 6 | . . . . . . . . . . . . . . . . 1 . . . . 3 . . . . 2 . . . Robot Hacks Applied 7 | . . . . . . . . . . . . . . . . 1 . . . . 3 . . . . 3 . . . parse_system 7 | . . . . . . . . . . . . . . . . 1 . . . . 3 . . . . 3 . . . Relay Couplers Released 6 | . . . . . . . . . . . . . . . . . . 3 . . . . . . . . . . 3 Machine Destruction 3 | . . . . . . . . . . . . . . . . . . . . . . . . . . . . . 3 Programmers 3 | . . . . . . . . . . . . . . . . . . 3 . . . . . . . . . . . Fabnet Peak Effective % . | . . . . . . . . . . . . . . . . . . . . . . . . . . . . . . Robots Rewired 5 | . . . . . . . . . . . . . . . . . . . . . . . . . . 5 . . . Allies Hacked . | . . . . . . . . . . . . . . . . . . . . . . . . . . . . . . Hacks Repelled . | . . . . . . . . . . . . . . . . . . . . . . . . . . . . . . Allies | -11 -10 -10 -10 -9 -8 -7 -7 -7 -7 -7 -7 -6 -6 -6 -6 -6 -5 -5 -5 -5 -5 -4 -4 -4 -4 -4 -3 -3 -3 -------- Run | Yrd Mat Min Exi Min Mat Fac Was Fac Low Low Zio Pro Fac Low Low Dat Pro Fac Upp Upp Zhi Pro Fac Upp Upp War Pro Res Gar Total Allies 26 | . . 1 . . . . 18 . . . . . 1 . . . . . . . . . 1 . . 5 . . . Largest Group 18 | . . 1 . . . . 18 2 . . . . 1 . . . . . . . . . 1 . . 5 . . . Highest-Rated Group 434 | . . 31 . . . . 434 60 . . . . 26 . . . . . . . . . 10 . . 279 . . . Highest-Rated Ally 68 | . . 31 . . . . 35 33 . . . . 26 . . . . . . . . . 10 . . 68 . . . Total Orders 5 | . . . . . 5 . . . . . . . . . . . . . . . . . . . . . . . . EXPLORE 5 | . . . . . 5 . . . . . . . . . . . . . . . . . . . . . . . . Ally Attacks 131 | . . . . . . . 109 5 . . . . . . . . . . . . . . . . . 17 . . . Total Damage 4772 | . . . . . . . 3678 26 . . . . . . . . . . . . . . . . . 1068 . . . Kills 13 | . . . . . . . 8 . . . . . . . . . . . . . . . . . . 5 . . . Allies Corrupted . | . . . . . . . . . . . . . . . . . . . . . . . . . . . . . . Allies Melted . | . . . . . . . . . . . . . . . . . . . . . . . . . . . . . . Intel | -11 -10 -10 -10 -9 -8 -7 -7 -7 -7 -7 -7 -6 -6 -6 -6 -6 -5 -5 -5 -5 -5 -4 -4 -4 -4 -4 -3 -3 -3 ------- Run | Yrd Mat Min Exi Min Mat Fac Was Fac Low Low Zio Pro Fac Low Low Dat Pro Fac Upp Upp Zhi Pro Fac Upp Upp War Pro Res Gar Active Infowar (turns) 9662 | . . . . . . 489 185 677 253 206 239 303 1014 141 205 36 85 1471 201 184 116 437 1448 212 124 578 219 646 193 Optics 4874 | . . . . . . . . . . . . . . . . . . 516 201 184 116 437 1448 212 124 578 219 646 193 Sensors 9581 | . . . . . . 489 185 677 253 206 239 303 1014 141 205 36 85 1471 201 184 116 434 1423 212 124 578 219 646 140 Terrain 91 | . . . . . . . . . . . . . . . . . . . . . . . . . . . . 91 . Structural 1409 | . . . . . . . . . . . . . . . . . . 455 . . . . 755 . . . . 199 . Triangulation 655 | . . . . . . . . . . . . . . . . . . . . . . . 199 212 124 120 . . . Cloaking 977 | . . . . . . . . . . . . . . . . . . . . . . . . . . 455 219 303 . Robot Analysis Total 4 | . . . . . . . . . . . . . . . . . . . . . 4 . . . . . . . . Derelict Logs Recovered 18 | . . 3 . 2 . . . . 1 2 1 1 . 1 . . 1 . 2 . . 1 . 2 1 . . . . Drone Launches 5 | . . . . . 5 . . . . . . . . . . . . . . . . . . . . . . . . Drone Recoveries 5 | . . . . . 5 . . . . . . . . . . . . . . . . . . . . . . . . Exploration | -11 -10 -10 -10 -9 -8 -7 -7 -7 -7 -7 -7 -6 -6 -6 -6 -6 -5 -5 -5 -5 -5 -4 -4 -4 -4 -4 -3 -3 -3 ------------- Run | Yrd Mat Min Exi Min Mat Fac Was Fac Low Low Zio Pro Fac Low Low Dat Pro Fac Upp Upp Zhi Pro Fac Upp Upp War Pro Res Gar Turns Passed 16595 | 71 318 1424 450 1116 3228 582 185 787 253 206 239 328 1077 141 205 36 85 1506 201 184 116 437 1448 212 124 578 219 646 193 Spaces Moved 23248 | 55 147 821 282 437 1496 957 321 1581 732 707 760 672 1816 322 378 90 224 3322 507 496 208 725 2331 550 360 1078 316 1285 272 Core 78 | 30 . . . . 12 . . . . . . 1 . . . . . . . . . . . . . . . . 35 Treads 2747 | 25 147 821 282 437 1035 . . . . . . . . . . . . . . . . . . . . . . . . Legs . | . . . . . . . . . . . . . . . . . . . . . . . . . . . . . . Wheels . | . . . . . . . . . . . . . . . . . . . . . . . . . . . . . . Hover 421 | . . . . . 421 . . . . . . . . . . . . . . . . . . . . . . . . Flight 20002 | . . . . . 28 957 321 1581 732 707 760 671 1816 322 378 90 224 3322 507 496 208 725 2331 550 360 1078 316 1285 237 Fastest Speed 24 | 50 160 160 160 160 42 26 26 26 26 26 26 26 30 37 37 37 37 24 28 28 32 32 31 31 31 31 35 32 42 Average Speed 51 | 105 160 160 160 235 157 36 26 27 26 26 26 27 32 37 37 37 37 32 28 31 32 32 38 31 31 31 35 33 43 Slowest Speed 750 | 160 160 160 160 240 750 96 26 102 91 26 26 300 120 117 37 37 37 109 86 32 32 100 42 31 31 35 35 42 125 Overloaded Moves 67 | . . . . . . . . . . . . . . . . . . 67 . . . . . . . . . . . Propulsion Burnouts . | . . . . . . . . . . . . . . . . . . . . . . . . . . . . . . Robots Hopped 54 | . . . . . . 1 . 8 1 . . . 7 . . . . 12 . . . . 4 . . 7 . 10 4 Potential Cave-ins 5 | . . . . . . . . . . . . . . . . . . 2 1 . . 2 . . . . . . . Cave-ins Triggered . | . . . . . . . . . . . . . . . . . . . . . . . . . . . . . . Teleports 1 | . . . . . . . . . . . . . . . . . . . . . . . . . . . . . 1 Exploration Rate (%) 61 | 4 29 98 73 52 86 26 96 46 73 88 86 68 38 54 51 75 40 48 69 82 63 69 51 75 70 95 56 40 51 Regions Visited 29 Branch Regions 19 Pre-discovered Areas 15 | . . . 1 2 2 . . . . . 2 . . . . 1 . . 1 . 3 1 . . 1 1 . . . Known Exits Taken 23 | . 1 . . 1 . . . 1 1 1 1 1 1 1 1 1 1 1 1 1 1 1 1 1 1 1 1 1 . Unknown Exits Taken 4 | 1 . 1 1 . 1 . . . . . . . . . . . . . . . . . . . . . . . . Scrap Searched 40 | . . 2 . 2 . . . . 5 4 4 . . 2 2 . 2 . 3 2 . 5 . 4 2 . 1 . . Spaces Dug 107 | . . . . . . . . 5 . 16 . 2 26 . . . . 27 . . . 1 16 . . . . 14 . Terrain Destroyed 1065 | . . 3 . . 42 9 . 26 71 33 . 2 115 22 . . . 164 89 39 . 76 81 . . 24 40 135 94 Melee 80 | . . . . . . . . 5 . . . 2 15 . . . . 27 . . . 1 16 . . . . 14 . Projectile 24 | . . . . . 24 . . . . . . . . . . . . . . . . . . . . . . . . AOE 961 | . . 3 . . 18 9 . 21 71 33 . . 100 22 . . . 137 89 39 . 75 65 . . 24 40 121 94 Terrain Rammed . | . . . . . . . . . . . . . . . . . . . . . . . . . . . . . . Walls Destroyed . | . . . . . . . . . . . . . . . . . . . . . . . . . . . . . . Machines Disabled . | . . . . . . . . . . . . . . . . . . . . . . . . . . . . . . Actions | -11 -10 -10 -10 -9 -8 -7 -7 -7 -7 -7 -7 -6 -6 -6 -6 -6 -5 -5 -5 -5 -5 -4 -4 -4 -4 -4 -3 -3 -3 --------- Run | Yrd Mat Min Exi Min Mat Fac Was Fac Low Low Zio Pro Fac Low Low Dat Pro Fac Upp Upp Zhi Pro Fac Upp Upp War Pro Res Gar Total 26810 | 66 186 894 281 476 2083 1181 421 1835 775 722 801 789 2215 335 442 91 224 3583 539 509 241 916 2791 589 367 1300 407 1422 329 Wait 2329 | . 6 46 . 10 312 163 94 140 27 8 36 97 291 . 65 . . 91 8 . . 169 372 34 5 181 81 60 33 Move 23124 | 54 146 820 281 436 1495 955 320 1566 729 706 759 671 1802 321 377 89 223 3297 506 495 207 724 2322 549 359 1067 315 1267 266 Hop 43 | . . . . . . 1 . 6 1 . . . 6 . . . . 12 . . . . 4 . . 3 . 8 2 Pick Up 191 | 5 6 6 . 1 47 15 2 17 1 . . . 17 2 . . . 23 1 1 6 3 11 3 1 4 1 16 2 Fast Attach 57 | 3 . . . . 10 2 . 8 1 1 2 . 3 1 . . . 7 . . 1 . 8 . . 8 . 2 . Attach 144 | 3 1 1 . 2 23 17 1 12 2 1 . 3 11 . . . . 23 4 2 4 3 10 1 . . 1 13 6 Detach 33 | . . . . . 1 1 . 4 1 . 1 . 3 . . . . 7 4 . . 3 6 . . . . 1 1 Swap 70 | 1 5 . . 1 8 . 2 3 4 1 1 . 5 3 . 1 1 11 . 1 4 3 4 . . 7 . 2 2 Drop 144 | . 1 . . 1 37 17 2 17 1 1 2 . 5 3 . . . 17 . . 4 2 5 1 . 14 . 12 2 Fire 322 | . 21 18 . 24 150 2 . 2 4 3 . . 7 4 . . . 27 11 4 . 7 7 . . 7 4 14 6 Melee 327 | . . . . . . 8 . 60 4 1 . 18 47 1 . 1 . 68 5 6 15 2 42 1 2 9 5 27 5 Ram 4 | . . . . . . . . . . . . . . . . . . . . . . . . . . . . . 4 Kick . | . . . . . . . . . . . . . . . . . . . . . . . . . . . . . . Crush 4 | . . 3 . 1 . . . . . . . . . . . . . . . . . . . . . . . . . Escape Stasis 18 | . . . . . . . . . . . . . 18 . . . . . . . . . . . . . . . . Rewire . | . . . . . . . . . . . . . . . . . . . . . . . . . . . . . . Trap . | . . . . . . . . . . . . . . . . . . . . . . . . . . . . . . Miscellaneous . | . . . . . . . . . . . . . . . . . . . . . . . . . . . . . . Route ------- -11/Scrapyard -10/Materials (discovered 5 exits: *Mat x3 / *Min x2) -10/Mines (discovered 3 exits: *Mat x2 / *Exi) -10/Exiles -9/Mines (discovered 2 exits: *Mat x2) -8/Materials (discovered 3 exits: *Fac x3) -7/Factory (discovered 2 exits: *Sto / *Low) -7/Waste -7/Factory (discovered 3 exits: *Fac x2 / *Low) -7/Lower Caves -7/Lower Caves (discovered 2 exits: *Fac / *Zio) -7/Zion -6/Proximity Caves -6/Factory (discovered 5 exits: *Fac x3 / *Low / *Ext) -6/Lower Caves -6/Lower Caves (discovered 2 exits: *Fac / *Dat) -6/Data Miner -5/Proximity Caves -5/Factory (discovered 3 exits: *Fac / *Upp x2) -5/Upper Caves -5/Upper Caves -5/Zhirov -4/Proximity Caves -4/Factory (discovered 6 exits: *Res x4 / *Upp x2) -4/Upper Caves -4/Upper Caves -4/Warlord -3/Proximity Caves -3/Research (discovered 2 exits: *Res / Gar) -3/Garrison History --------- Turn | Location | Event 16 | -11/Scrapyard | Discovered new exit (range 15) 72 | -11/Scrapyard | Entered Materials 124 | -10/Materials | Identified exit to Mines 150 | -10/Materials | Identified exit to Materials 337 | -10/Materials | Build established: Mutant 390 | -10/Materials | Entered Mines 426 | -10/Mines | Joined a pair of Derelicts in attacking an 0b10 outpost 559 | -10/Mines | Learned Materials machine intel 600 | -10/Mines | Discovered exit to Materials (range 12) 611 | -10/Mines | YI-UF0 nonchalantly dropped a Grenade Launcher on the ground 823 | -10/Mines | Found the Drone Emporium 829 | -10/Mines | Found Prototype Device 870 | -10/Mines | Learned Materials stockpile data 878 | -10/Mines | Deemed a non-threat by the Exiles lab entrance 878 | -10/Mines | Discovered new exit (range 5) 1074 | -10/Mines | Learned Materials terminal intel 1092 | -10/Mines | Core integrity fell below 50% 1161 | -10/Mines | Discovered exit to Materials (range 5) 1465 | -10/Mines | Received a Mining Laser from a helpful Derelict 1814 | -10/Mines | Entered Exiles 1853 | -10/Exiles | Met 8R-AWN 1880 | -10/Exiles | Met EX-HEX 1942 | -10/Exiles | Met EX-DEC 1952 | -10/Exiles | Learned location of Zion (-7) 2035 | -10/Exiles | Visited The Gauntlet 2243 | -10/Exiles | Discovered new exit (range 12) 2264 | -10/Exiles | Entered Mines 2359 | -9/Mines | Destroyed 7 combat bots 2365 | -9/Mines | Discovered new exit (range 11) 2613 | -9/Mines | Identified exit to Materials 2777 | -9/Mines | Learned location of Storage (-7) 3075 | -9/Mines | Assembled infested the area 3080 | -9/Mines | Assisted by a Guerilla fighting off Assembled 3380 | -9/Mines | Entered Materials 3380 | -8/Materials | Evolved 4 slots: Propulsion x2, Utility x2 3382 | -8/Materials | Loaded intel: 67 machine locations 3383 | -8/Materials | Loaded intel: 12 terminal locations 3836 | -8/Materials | Lost 3 parts (1p1n1u) 4009 | -8/Materials | Identified Sensor Drone Bay 4046 | -8/Materials | Discovered new exit (range 31) 4512 | -8/Materials | Discovered new exit (range 15) 4614 | -8/Materials | Core integrity fell below 50% 5820 | -8/Materials | Discovered new exit (range 5) 6180 | -8/Materials | First assault squad dispatched 6608 | -8/Materials | Entered Factory 6608 | -7/Factory | Evolved 2 slots: Utility x2 6653 | -7/Factory | Discovered new exit (range 4) 6674 | -7/Factory | Identified exit to Lower Caves 6889 | -7/Factory | Repaired Lgt. Ion Engine 7108 | -7/Factory | Discovered new exit (range 5) 7109 | -7/Factory | Identified exit to Storage 7190 | -7/Factory | Sucked down chute 7190 | -7/Factory | Entered Waste 7218 | -7/Waste | Spotted C-40 Crusher 7218 | -7/Waste | Spotted C-40 Crusher 7240 | -7/Waste | Spotted C-40 Crusher 7241 | -7/Waste | Spotted C-40 Crusher 7242 | -7/Waste | Spotted C-40 Crusher 7248 | -7/Waste | Warlord forces began an assault 7264 | -7/Waste | Spotted C-40 Crusher 7307 | -7/Waste | Discovered new exit (range 15) 7329 | -7/Waste | Identified exit to Factory 7331 | -7/Waste | Lost 10 allies 7361 | -7/Waste | Build established: Hacker-Sprinter 7375 | -7/Waste | Entered Factory 7375 | -7/Factory | Accompanied by 2 allies 7636 | -7/Factory | Repaired Nuclear Pulse Array 7675 | -7/Factory | Repaired Lrn. Sensor Array 7813 | -7/Factory | Discovered new exit (range 15) 7822 | -7/Factory | Identified exit to Factory 7829 | -7/Factory | Discovered exit to Factory (range 7) 7845 | -7/Factory | Fabricated Nuclear Pulse Array? 7929 | -7/Factory | Fabricated Hacking Suite? 8039 | -7/Factory | Discovered exit to Lower Caves (range 10) 8111 | -7/Factory | Fabricated Nuclear Pulse Array (x1) 8162 | -7/Factory | Entered Lower Caves 8190 | -7/Lower Caves | Identified exit to Lower Caves 8216 | -7/Lower Caves | Encountered a Warlord checkpoint 8262 | -7/Lower Caves | Attacked by a faux Warlord 8295 | -7/Lower Caves | Lost 3 allies 8415 | -7/Lower Caves | Entered another Lower Caves area 8417 | -7/Lower Caves | Discovered exit to Factory (range 11) 8420 | -7/Lower Caves | Identified exit to Zion 8564 | -7/Lower Caves | Learned Factory garrison access intel 8577 | -7/Lower Caves | Encountered a Warlord checkpoint 8621 | -7/Lower Caves | Entered Zion 8633 | -7/Zion | Received a visual enhancement algorithm 8633 | -7/Zion | Ran a visual enhancement algorithm 8658 | -7/Zion | Discovered new exit (range 8) 8660 | -7/Zion | Identified exit to Proximity Caves 8671 | -7/Zion | System corruption cleaned by Quarantine Array 8696 | -7/Zion | Learned 8 Factory zone layouts 8720 | -7/Zion | Found CR-A16's Pointy Stick 8734 | -7/Zion | Met Imprinter 8771 | -7/Zion | Given the Hacking Drone Bay 8776 | -7/Zion | Learned location of Recycling (-7) 8860 | -7/Zion | Entered Proximity Caves 8951 | -6/Proximity Caves | Learned 8 Factory zone layouts 9031 | -6/Proximity Caves | Spotter reported a threat 9102 | -6/Proximity Caves | Core integrity fell below 50% 9152 | -6/Proximity Caves | Spotter reported a threat 9162 | -6/Proximity Caves | Spotter reported a threat 9163 | -6/Proximity Caves | Lost 4 parts (1p2n1w) 9185 | -6/Proximity Caves | Discovered exit to Factory (range 8) 9188 | -6/Proximity Caves | Entered Factory 9188 | -6/Factory | Evolved 2 slots: Utility x2 9189 | -6/Factory | Identified exit to Lower Caves 9189 | -6/Factory | Identified exit to Factory 9190 | -6/Factory | Loaded intel: 4 garrison access locations 9471 | -6/Factory | Repaired Lrn. Sensor Array 9508 | -6/Factory | Repaired Imp. Cesium-ion Thruster 9519 | -6/Factory | Discovered new exit (range 13) 9527 | -6/Factory | Identified exit to Extension 9775 | -6/Factory | Discovered exit to Factory (range 15) 9842 | -6/Factory | Fabricated Field Propulsion Array? 9954 | -6/Factory | Repaired Nuclear Pulse Array 9975 | -6/Factory | Repaired Lgt. Nuclear Core 9998 | -6/Factory | Repaired Ripper 10003 | -6/Factory | P-60 Hacker assimilated allied Administrator 5a 10150 | -6/Factory | Build established: Hacker-Mutant 10195 | -6/Factory | Garrison activated, responded to threat 10198 | -6/Factory | Repaired Hvy. Rocket Launcher 10236 | -6/Factory | Repaired Lrn. Sensor Array 10265 | -6/Factory | Entered Lower Caves 10295 | -6/Lower Caves | Identified exit to Lower Caves 10394 | -6/Lower Caves | Acquired the password to a Derelict Tinkerer's latest research 10406 | -6/Lower Caves | Entered another Lower Caves area 10426 | -6/Lower Caves | Discovered exit to Factory (range 7) 10605 | -6/Lower Caves | Discovered new exit (range 15) 10610 | -6/Lower Caves | Identified exit to Data Miner 10611 | -6/Lower Caves | Entered Data Miner 10611 | -6/Data Miner | Discovered new exit (range 6) 10619 | -6/Data Miner | Met Data Miner 10632 | -6/Data Miner | Learned location of Section 7 (-2) 10632 | -6/Data Miner | Acquired the access code to Warlord's prototype stash 10639 | -6/Data Miner | Received God Mode back door access code from Data Miner 10647 | -6/Data Miner | Identified exit to Proximity Caves 10647 | -6/Data Miner | Entered Proximity Caves 10690 | -5/Proximity Caves | Learned Factory trap positions 10727 | -5/Proximity Caves | Discovered exit to Factory (range 7) 10732 | -5/Proximity Caves | Entered Factory 10732 | -5/Factory | Evolved 2 slots: Utility x2 10733 | -5/Factory | Loaded intel: 127 trap records 11025 | -5/Factory | Discovered new exit (range 9) 11028 | -5/Factory | Identified exit to Upper Caves 11078 | -5/Factory | Repaired Imp. Light Armor Plating 11118 | -5/Factory | Build established: Wizard-Sprinter 11540 | -5/Factory | Lost 4 parts (1n3u) 11805 | -5/Factory | Build established: Hacker-Scout 11849 | -5/Factory | Discovered new exit (range 14) 12017 | -5/Factory | Fabricated Mni. Smartbomb Launcher? 12167 | -5/Factory | Core integrity fell below 50% 12238 | -5/Factory | Entered Upper Caves 12280 | -5/Upper Caves | Learned location of Armory (-3) 12359 | -5/Upper Caves | Learned location of 1 exit from Proximity Caves 12366 | -5/Upper Caves | Found DCF Scrap (15 items) 12383 | -5/Upper Caves | Attracted the attention of an 0b10 checkpoint 12414 | -5/Upper Caves | Discovered new exit (range 18) 12439 | -5/Upper Caves | Identified exit to Upper Caves 12439 | -5/Upper Caves | Entered another Upper Caves area 12611 | -5/Upper Caves | Discovered new exit (range 14) 12623 | -5/Upper Caves | Identified exit to Zhirov 12623 | -5/Upper Caves | Entered Zhirov 12623 | -5/Zhirov | Discovered new exit (range 3) 12629 | -5/Zhirov | Met Zhirov 12638 | -5/Zhirov | Learned location of Quarantine (-3) 12638 | -5/Zhirov | Learned location of Testing (-2) 12638 | -5/Zhirov | Learned location of Command (-1) 12645 | -5/Zhirov | Zhirov requested help retrieving the SGEMP Prototype 12662 | -5/Zhirov | Found Alien Artifact 12664 | -5/Zhirov | Identified Integrated Reactor 12664 | -5/Zhirov | Installed Integrated Reactor, increased core energy generation (+10) 12726 | -5/Zhirov | Found Alien Artifact 12738 | -5/Zhirov | Identified exit to Proximity Caves 12739 | -5/Zhirov | Entered Proximity Caves 12740 | -4/Proximity Caves | Identified exit to Factory 12797 | -4/Proximity Caves | Attracted the attention of an 0b10 checkpoint 13176 | -4/Proximity Caves | Entered Factory 13176 | -4/Factory | Evolved 2 slots: Propulsion x1, Utility x1 13370 | -4/Factory | Identified exit to Upper Caves 13445 | -4/Factory | Build established: Wizard-Scout 13465 | -4/Factory | Identified Transdimensional Reconstructor 13472 | -4/Factory | Discovered new exit (range 13) 13539 | -4/Factory | Identified exit to Research 13961 | -4/Factory | Repaired Med. Storage Unit 13995 | -4/Factory | Repaired Adv. Sensor Array 14028 | -4/Factory | Repaired Force Lance 14132 | -4/Factory | Lost 4 parts (2n2u) 14396 | -4/Factory | Build established: Hacker-Scout 14396 | -4/Factory | Incoming investigation squad redirected 14419 | -4/Factory | Fabricated Nuclear Pulse Array (x1) 14624 | -4/Factory | Entered Upper Caves 14663 | -4/Upper Caves | Learned Research security intel 14731 | -4/Upper Caves | Build established: Hacker-Ninja 14747 | -4/Upper Caves | Found DCF Scrap (16 items) 14803 | -4/Upper Caves | Learned Research stockpile data 14820 | -4/Upper Caves | Discovered new exit (range 4) 14827 | -4/Upper Caves | Found Alien Artifact 14830 | -4/Upper Caves | Identified exit to Upper Caves 14836 | -4/Upper Caves | Entered another Upper Caves area 14880 | -4/Upper Caves | Attacked by a delusional Derelict stockpiling Unaware 14896 | -4/Upper Caves | Spotted B-86 Titan 14958 | -4/Upper Caves | Discovered new exit (range 6) 14959 | -4/Upper Caves | Identified exit to Warlord 14960 | -4/Upper Caves | Entered Warlord 14972 | -4/Warlord | System corruption cleaned by Quarantine Array 14983 | -4/Warlord | Learned Research recycling unit intel 14983 | -4/Warlord | Learned 4 Testing zone layouts 14983 | -4/Warlord | Learned 4 Quarantine zone layouts 14983 | -4/Warlord | Learned 4 Command zone layouts 14984 | -4/Warlord | Learned Research emergency access door positions 15042 | -4/Warlord | Warlord's base attacked by MAIN.C 15054 | -4/Warlord | Found Prototype Energy Gun 15054 | -4/Warlord | Identified Vortex Rifle 15057 | -4/Warlord | Found Prototype Energy Gun 15057 | -4/Warlord | Identified Vortex Shotgun 15082 | -4/Warlord | Found Vortex Shotgun 15104 | -4/Warlord | Opened Warlord's prototype stash 15130 | -4/Warlord | Met Warlord 15261 | -4/Warlord | Spotted B-90 Cyclops 15288 | -4/Warlord | P-80 Master assimilated allied Archangel 7a 15306 | -4/Warlord | Warlord forces counterattacked 15325 | -4/Warlord | Lost 5 allies 15377 | -4/Warlord | Spotted Striker 15391 | -4/Warlord | Spotted Executioner 15392 | -4/Warlord | Spotted Striker 15408 | -4/Warlord | Destroyed Striker 15413 | -4/Warlord | Destroyed Executioner 15448 | -4/Warlord | Lost 11 allies 15465 | -4/Warlord | Spotted Striker 15481 | -4/Warlord | Spotted Striker 15483 | -4/Warlord | Destroyed Striker 15513 | -4/Warlord | Opened side exit 15514 | -4/Warlord | Lost 8 allies 15527 | -4/Warlord | Discovered new exit (range 22) 15534 | -4/Warlord | Identified exit to Proximity Caves 15538 | -4/Warlord | Entered Proximity Caves 15742 | -3/Proximity Caves | Discovered exit to Research (range 8) 15757 | -3/Proximity Caves | Entered Research 15757 | -3/Research | Evolved 2 slots: Propulsion x1, Utility x1 15761 | -3/Research | Loaded intel: 5 recycling unit locations 15802 | -3/Research | Repaired Mni. Smartbomb Launcher 15811 | -3/Research | Discovered new exit (range 8) 15813 | -3/Research | Identified exit to Research 16043 | -3/Research | Repaired Broken Impulse Thruster Array 16079 | -3/Research | Found Prototype Launcher 16079 | -3/Research | Identified Adv. Micro-nuke Launcher 16383 | -3/Research | Lost 7 parts (2p1n4u) 16403 | -3/Research | Identified exit to Garrison 16403 | -3/Research | Entered Garrison 16404 | -3/Garrison | Identified Dimensional Node Initializer 16404 | -3/Garrison | Initialized slip node 16411 | -3/Garrison | Phase Generator disabled 16427 | -3/Garrison | Lost 4 parts (2n2w) 16467 | -3/Garrison | Garrison Relay disabled 16524 | -3/Garrison | Build established: Hacker-Scout 16540 | -3/Garrison | Spotted B-86 Titan 16548 | -3/Garrison | Core integrity fell below 50% 16548 | -3/Garrison | Warped through subspace to slip node 16574 | -3/Garrison | Triggered checkpoint 16587 | -3/Garrison | Core integrity fell below 20% 16590 | -3/Garrison | System corruption reached 10% 16596 | -3/Garrison | Destroyed by B-74 Champion with Powered Hammer Last Messages --------------- Slug penetrates Wall. Beams of light sweep through the air. An alarm sounds. Impulse Thruster Array destroyed. Dropped Med. Storage Unit. Penetrated by Slug. Slammed into S-43 Plague. Destabilizing: System corrupted (+2). Hacking Suite destroyed. Slammed into S-43 Plague. Destabilizing: System interference. Imp. Signal Interpreter temporarily disabled. Adv. Launcher Guidance Computer temporarily disabled. Imp. System Shield destroyed. System corrupted: Matter fused (-10). Slammed into L-61 Swordsman. Enh. Optical Array destroyed. System corrupted by crushing effect (+3). Map ----- +----------------------------------------------------+ | ?????????????????????????????????????????????????? | | ?????????????????????????????????????????????????? | | ?????????????????????????????????????????????????? | | ???#####?????????????????????????????????????????? | | ???#"""#?????????????????????????????????????????? | | ???# "#?????????????????????????????????????????? | | #### !"#?????????????????????????????????????????? | | = ! #?????????????????????????????????????????? | | ### !"#?????????????????????????????????????????? | | #?#"""#?????????????????????????????????????????? | | #?#####?????????????????????????????????????????? | | #???????????????????????????????????????????????? | | #???????????????????????????????????????????????? | | #???????????????????????????????????????????????? | | #???????????????????????????????????????????????? | | #???????????????????????????????????????????????? | | #???????????????########????????????????????????? | | #???????????????# #????????????????????????? | | #???????????????# """"#????????????????????????? | | #???????????????# ]]""#????????????????????????? | | #???????????????# ]]""#????????????????????????? | | #???????????????# """"#????????????????????????? | | #???????????????# #????????????????????????? | | #???????????????# ######?##?????????????????????? | | #???????????????# #######b"?????????????????????? | | ##########??????# # sss@l"?????????????????????? | | #??????# #s##### "?????????????????????? | | #??????# # #????##??#??????????????????? | | #??????# # ####### ##########?????????? | | ###### #?????## ???????? | | #????# #?????#T ???????? | | #????# #?????## ???????? | | ###### #??????# ####### #########??????????? | | #??????# #???????????????????????????? | | ###### #??????# #???????????????????????????? | | #????# #??????# ####### #??????????????????? | | #????# #??????# #??????????????????? | | #????# ######## ####### #??????????????????? | | #????# ## ## #???????????????????????????? | | #????# ## ## #???????????????????????????? | | ###### #######?????????????????????? | | ! % #??????????????????? | | ## #### #??????????????????? | | ?# #??# #" "# ##########??????????????????? | | ?# #### #" ## #???????????????????????????? | | ?# "???????????????????????????? | | ?#### "???????????????????????????? | | ????# "???????????????????????????? | | ????# "???????????????????????????? | | ????### #" ## #???????????????????????????? | +----------------------------------------------------+ Best States ------------- Heat Dissipation 46 Energy Generation 29 Energy Capacity 290 Matter Stores 300 Matter Capacity 300 Sight Range 22 Robot Scan Range 18 Terrain Scan Range 14 Terrain Scan Density 10 Cloak Strength 3 Armor Coverage 450 Propulsion Shielding 66 Utility Shielding 33 Weapon Shielding 33 Point Defense Rating 240 Phase Shifting 5 Evasion (%) 68 Targeting Accuracy 8 Melee Accuracy 6 Launcher Accuracy 40 Recoil Reduction 4 Offensive Hacking 44 Defensive Hacking 25 Item Schematics ----------------- Grenade Launcher | -8/Materials | Scanalyzed Hacking Suite | -8/Materials | Scanalyzed Imp. VTOL Module | -7/Factory | Scanalyzed Transmission Jammer | -7/Factory | Scanalyzed Imp. Sensor Array | -7/Factory | Scanalyzed Nuclear Pulse Array | -7/Factory | Scanalyzed Lrn. Sensor Array | -7/Factory | Scanalyzed Utility Shielding | -7/Factory | Scanalyzed Chainsword | -7/Factory | Scanalyzed Fission Core | -7/Zion | Archive Shock Absorption System | -7/Zion | Archive Lgt. Angular Momentum Engine | -7/Zion | Archive Imp. EM Pulse Cannon | -7/Zion | Archive Adv. Cooling System | -7/Zion | Archive Imp. Medium Armor Plating | -7/Zion | Archive Imp. System Shield | -7/Zion | Archive Microactuators | -7/Zion | Archive Coil Gun | -7/Zion | Archive Med. Reactive Plating | -7/Zion | Archive Drone Bay | -7/Zion | Archive Coolant Injector | -7/Zion | Archive Stasis Canceller | -7/Zion | Archive Field Propulsion Drive | -7/Zion | Archive Imp. Cesium-ion Thruster | -6/Factory | Scanalyzed Ripper | -6/Factory | Scanalyzed Combat Drone Bay | -6/Data Miner | Free Lgt. Regenerative Plating | -6/Data Miner | Free Exp. Cesium-ion Thruster | -6/Data Miner | Free Prc. Matter Filter | -6/Data Miner | Free Mni. Smartbomb Launcher | -6/Data Miner | Free Adv. VSS Leg | -6/Data Miner | Free Adv. Coolant Injector | -6/Data Miner | Free Matter Neutralizer | -6/Data Miner | Free Tesla Rifle | -6/Data Miner | Free Antimatter Reactor | -6/Data Miner | Free Hvy. Linear Accelerator | -6/Data Miner | Free Assault Drone Bay | -5/Zhirov | Free Exp. Heat Sink | -5/Zhirov | Free Exp. Optical Array | -5/Zhirov | Free Imp. Arc Thrower | -5/Zhirov | Free Imp. Melee Analysis Suite | -4/Factory | Scanalyzed IFF Parser | -4/Factory | Scanalyzed Phase Shifter | -4/Factory | Scanalyzed Mak. Light Armor Plating | -4/Factory | Scanalyzed Mic. Fission Core | -4/Factory | Scanalyzed Cld. Nuclear Pulse Thruster | -4/Factory | Hacked Adv. Hacking Suite | -4/Factory | Hacked Robot Schematics ------------------ R-06 Scavenger | -7/Zion | Archive L-41 Fighter | -7/Zion | Archive G-47 Trooper | -7/Zion | Archive B-60 Warrior | -6/Data Miner | Free G-50 Soldier | -6/Data Miner | Free H-66 Slayer | -6/Data Miner | Free R-10 Processor | -6/Data Miner | Free A-27 Freighter | -6/Data Miner | Free Fabricated ------------ Nuclear Pulse Array | x1 | -7/Factory Hacking Suite | x1 | -7/Factory Nuclear Pulse Array | x1 | -7/Factory Field Propulsion Array | x1 | -6/Factory | Preloaded Mni. Smartbomb Launcher | x1 | -5/Factory Nuclear Pulse Array | x1 | -4/Factory Repaired ---------- Lgt. Ion Engine | 52% | -7/Factory Nuclear Pulse Array | 15% | -7/Factory Lrn. Sensor Array | 3% | -7/Factory Lrn. Sensor Array | 14% | -6/Factory Imp. Cesium-ion Thruster | 20% | -6/Factory Nuclear Pulse Array | 60% | -6/Factory Lgt. Nuclear Core | 14% | -6/Factory Ripper | 10% | -6/Factory Hvy. Rocket Launcher | 38% | -6/Factory Lrn. Sensor Array | 25% | -6/Factory Imp. Light Armor Plating | 35% | -5/Factory Med. Storage Unit | 9% | -4/Factory Adv. Sensor Array | 16% | -4/Factory Force Lance | 47% | -4/Factory Mni. Smartbomb Launcher | 51% | -3/Research Impulse Thruster Array | 71% | -3/Research | Broken Alien Tech Used ----------------- Integrated Reactor Dimensional Node Initializer Transdimensional Reconstructor Achievements -------------- None Challenges ------------ None Game ------ Seed IonHypertargetingCompactor Manual? 0 Play Time 03:57:03 Cumulative 63.2 hours Start 2025.06.10 @ 00:30:13 End 2025.06.10 @ 06:31:06 Sessions 3 Manual Loads 0 Difficulty Rogue Special Mode None Game No. 57 Rogue 57 Adventurer 0 Explorer 0 Win Type - Total 1 Types 1/0/0/0/0/0/0/0/0/0 Lore% 44 Gallery% 45 Achievement% 43 Wizard Run 0 Options --------- Layout 1 ASCII 0 Keyboard 0 Movement Mouse Keybinds 0 Fullscreen 2 Font 24/Smallcaps Map View 50x35 Zoom Use 0% Tactical HUD 0 Map Filters NONE Filters NONE Steam 1 RUN: 20767327-91dc-434c-b03b-61a9b90e5ef6